bitfinex/quotes_BTCUSD_20250602
["timestamp","ask_amount","ask_price","bid_price","bid_amount"]
[1748907410487,1.46152825,105830.0,105820.0,0.9118543]
[1748907410703,1.10457214,105830.0,105820.0,0.9118543]
[1748907411243,1.095714,105830.0,105820.0,0.9118543]
[1748907411462,1.01254221,105830.0,105820.0,0.9118543]
[1748907411888,1.030258,105830.0,105820.0,0.9118543]
[1748907412091,1.01254221,105830.0,105820.0,0.9118543]
[1748907412510,0.67330189,105830.0,105820.0,0.9118543]
[1748907412712,1.01254221,105830.0,105820.0,0.9118543]
[1748907413393,1.08685208,105830.0,105820.0,0.9118543]
[1748907413640,1.09571027,105830.0,105820.0,0.9118543]
[1748907414383,1.09571027,105830.0,105820.0,0.5080143]
[1748907414620,1.1134264,105830.0,105820.0,0.9117343]
[1748907414835,1.11342644,105830.0,105820.0,0.9117343]
[1748907415038,1.11342644,105830.0,105820.0,0.9097343]
[1748907415297,1.09571027,105830.0,105820.0,0.9097343]
[1748907415497,1.09571027,105830.0,105820.0,0.9077343]
[1748907415733,1.10456835,105830.0,105820.0,0.9077343]
[1748907415921,1.12228452,105830.0,105820.0,0.9077343]
[1748907416131,1.12228454,105830.0,105820.0,0.9077343]
[1748907416293,1.11542645,105830.0,105820.0,0.9077343]
[1748907416495,1.09771027,105830.0,105820.0,0.9077343]
[1748907416702,1.10656837,105830.0,105820.0,0.9077343]
[1748907416909,1.07612604,105830.0,105820.0,0.9077343]
[1748907417108,1.09384223,105830.0,105820.0,0.9077343]
[1748907417270,1.07612604,105830.0,105820.0,0.9077343]
[1748907417697,1.09384223,105830.0,105820.0,0.9077343]
[1748907417944,1.07612604,105830.0,105820.0,0.9077343]
[1748907418351,1.10270031,105830.0,105820.0,0.9077343]
[1748907419591,1.0106861,105830.0,105820.0,0.90331213]
[1748907419790,1.01954415,105830.0,105820.0,0.90331213]
[1748907420003,1.0106861,105830.0,105820.0,0.90331213]
[1748907420218,0.82052183,105830.0,105820.0,0.90331213]
[1748907420436,0.41564962,105830.0,105820.0,1.10176214]
[1748907420647,0.78205404,105830.0,105820.0,1.11121179]
[1748907420859,0.80921743,105830.0,105820.0,1.12701179]
[1748907421071,0.79150253,105830.0,105820.0,1.13646135]
[1748907421291,0.41564962,105830.0,105820.0,1.1626225]
[1748907421541,0.07564962,105830.0,105820.0,1.51957861]
[1748907423876,0.07564962,105830.0,105820.0,1.89107557]
[1748907424711,0.07564962,105830.0,105820.0,1.53411946]
[1748907425317,0.07564962,105830.0,105820.0,1.17716335]
[1748907426981,0.05793434,105830.0,105820.0,1.17716335]
[1748907429062,0.05793434,105830.0,105820.0,0.87176335]
[1748907429266,0.05793434,105830.0,105820.0,1.17684335]
[1748907429680,0.05793434,105830.0,105820.0,1.17644335]
[1748907429907,0.05793434,105830.0,105820.0,0.77344335]
[1748907430092,0.05793434,105830.0,105820.0,1.17644335]
[1748907430549,0.05793434,105830.0,105820.0,1.17640335]
[1748907432087,0.4306089,105830.0,105820.0,0.78651231]
[1748907432304,0.05793434,105830.0,105820.0,1.13647303]
[1748907434181,0.05793434,105830.0,105820.0,1.13643303]
[1748907437315,0.05793434,105830.0,105820.0,1.15153303]
[1748907438594,0.05793434,105830.0,105820.0,1.15015399]
[1748907441212,0.05802564,105830.0,105820.0,1.15015399]
[1748907442905,0.05802564,105830.0,105820.0,1.5216694]
[1748907443971,0.05302564,105830.0,105820.0,1.5216694]
[1748907444176,0.05302564,105830.0,105820.0,1.5306694]
[1748907444652,0.05102564,105830.0,105820.0,1.5306694]
[1748907445974,0.05102564,105830.0,105820.0,1.5396694]
[1748907448865,0.05102564,105830.0,105820.0,1.8384694]
[1748907450020,0.05102564,105830.0,105820.0,1.48149484]
[1748907450357,0.03802564,105830.0,105820.0,1.48149484]
[1748907451744,0.03802564,105830.0,105820.0,1.07861484]
[1748907451871,0.03802564,105830.0,105820.0,1.48077484]
[1748907457384,0.01802564,105830.0,105820.0,1.48077484]
[1748907457753,0.01802564,105830.0,105820.0,1.18197484]
[1748907459101,0.01802564,105830.0,105820.0,1.5389494]
[1748907461750,0.01802564,105830.0,105820.0,1.18197484]
[1748907461957,0.01802564,105830.0,105820.0,1.5389494]
[1748907463589,0.01802564,105830.0,105820.0,1.8377494]
[1748907466982,0.01802564,105830.0,105820.0,1.48077484]
[1748907467231,0.01802564,105830.0,105820.0,2.19467238]
[1748907468185,0.01802564,105830.0,105820.0,1.89587238]
[1748907468585,0.01802564,105830.0,105820.0,1.92478478]
[1748907469500,0.01802564,105830.0,105820.0,1.89587238]
[1748907471287,0.01802564,105830.0,105820.0,1.53890753]
[1748907471502,0.01102564,105830.0,105820.0,1.53890753]
[1748907473223,0.01102564,105830.0,105820.0,1.56768318]
[1748907476534,0.01102564,105830.0,105820.0,1.86648318]
[1748907480647,0.01102564,105830.0,105820.0,1.86592318]
[1748907482668,0.01102564,105830.0,105820.0,1.50899049]
[1748907482895,0.01102564,105830.0,105820.0,1.86592318]
[1748907484050,0.01102564,105830.0,105820.0,1.86504318]
[1748907484908,0.01102564,105830.0,105820.0,1.56100318]
[1748907485168,0.01102564,105830.0,105820.0,1.86496318]
[1748907491312,0.01102564,105830.0,105820.0,2.22178985]
[1748907492636,0.13172216,105850.0,105840.0,0.23196067]
[1748907492849,0.14752216,105850.0,105840.0,0.72881497]
[1748907493927,0.15252216,105850.0,105840.0,0.72881497]
[1748907494572,0.15452216,105850.0,105840.0,0.72881497]
[1748907497398,0.15452216,105850.0,105840.0,0.72873497]
[1748907497641,0.51140184,105850.0,105840.0,0.71419412]
[1748907498326,0.51140184,105850.0,105840.0,0.31327412]
[1748907498813,1.41612217,105850.0,105840.0,0.1930543]
[1748907499051,1.41612217,105850.0,105820.0,0.40147879]
[1748907499052,0.0312,105830.0,105820.0,0.40147879]
[1748907499274,0.41642532,105830.0,105820.0,0.90766309]
[1748907499715,0.40697657,105830.0,105820.0,0.92656284]
[1748907499939,0.40697657,105830.0,105820.0,1.12501267]
[1748907500152,0.41642524,105830.0,105820.0,1.11560302]
[1748907500332,0.41642524,105830.0,105820.0,1.12505276]
[1748907500958,0.42587399,105830.0,105820.0,0.91715292]
[1748907501176,0.42587399,105830.0,105820.0,0.92615292]
[1748907501397,0.4166972,105830.0,105820.0,0.94460266]
[1748907502013,0.4166972,105830.0,105820.0,0.93515292]
[1748907502227,0.4166972,105830.0,105820.0,0.53423301]
[1748907502429,0.4166972,105830.0,105820.0,0.94460284]
[1748907502789,0.4166972,105830.0,105820.0,0.55313258]
[1748907502998,0.4166972,105830.0,105820.0,0.95401258]
[1748907503225,0.4166972,105830.0,105820.0,1.14301276]
[1748907503988,0.40724853,105830.0,105820.0,1.15246232]
[1748907504183,0.40724853,105830.0,105820.0,1.15246241]
[1748907504457,0.0406484,105830.0,105820.0,1.13356249]
[1748907504610,0.0406484,105830.0,105820.0,1.12411284]
[1748907504611,0.39780004,105830.0,105820.0,1.12411284]
[1748907504818,0.40724871,105830.0,105820.0,1.13356249]
[1748907505023,0.39780004,105830.0,105820.0,1.13356249]
[1748907505227,0.40724862,105830.0,105820.0,1.13356249]
[1748907505433,0.43322806,105830.0,105820.0,1.13356249]
[1748907505678,0.43322806,105830.0,105820.0,1.14301205]
[1748907505882,0.40606565,105830.0,105820.0,1.15246152]
[1748907506106,0.41551405,105830.0,105820.0,1.15246152]
[1748907506308,0.41551405,105830.0,105820.0,1.14301205]
[1748907506715,0.40606565,105830.0,105820.0,1.15246152]
[1748907506965,0.41551396,105830.0,105820.0,1.13356222]
[1748907507117,0.41551396,105830.0,105820.0,1.14012343]
[1748907507520,0.42496245,105830.0,105820.0,1.14012387]
[1748907508118,0.42496245,105830.0,105820.0,1.12122448]
[1748907508318,0.7744112,105830.0,105820.0,0.53138422]
[1748907508520,0.77441112,105830.0,105820.0,0.93222422]
[1748907508720,0.77441112,105830.0,105820.0,0.1138543]
[1748907508922,0.77441112,105830.0,105820.0,0.93222422]
[1748907508923,0.79212539,105830.0,105820.0,0.93222422]
[1748907509184,0.80157417,105830.0,105820.0,0.9322243]
[1748907509342,0.78386049,105830.0,105820.0,0.5219343]
[1748907509543,0.78386049,105830.0,105820.0,0.9227343]
[1748907509740,0.81928901,105830.0,105820.0,0.9227343]
[1748907509949,0.79212587,105830.0,105820.0,0.9227343]
[1748907510146,0.80157471,105830.0,105820.0,0.9227343]
[1748907510353,0.80157471,105830.0,105820.0,0.9321843]
[1748907510552,0.80157471,105830.0,105820.0,0.9227343]
[1748907511323,0.81928901,105830.0,105820.0,0.9227343]
[1748907511747,0.42434262,105830.0,105820.0,0.31230448]
[1748907511959,0.80039115,105830.0,105820.0,1.13031431]
[1748907512163,0.81810541,105830.0,105820.0,1.13031431]
[1748907512371,0.80039115,105830.0,105820.0,1.12086448]
[1748907512570,0.80039115,105830.0,105820.0,1.1303144]
[1748907512767,0.82755408,105830.0,105820.0,1.13976423]
[1748907512975,0.80983982,105830.0,105820.0,1.13976423]
[1748907513417,0.8275541,105830.0,105820.0,1.13976423]
[1748907513626,0.80983982,105830.0,105820.0,1.13976423]
[1748907514251,0.80039115,105830.0,105820.0,1.14921397]
[1748907514450,0.80039115,105830.0,105820.0,1.13976423]
[1748907515131,0.80039115,105830.0,105820.0,1.14921397]
[1748907515720,0.43379093,105830.0,105820.0,1.14921397]
[1748907515927,0.80983955,105830.0,105820.0,1.14921397]
[1748907516090,0.80983955,105830.0,105820.0,1.1303144]
[1748907516295,0.82755379,105830.0,105820.0,1.13976423]
[1748907516508,0.80983955,105830.0,105820.0,1.14921397]
[1748907516920,0.80039097,105830.0,105820.0,1.14921397]
[1748907517354,0.81810481,105830.0,105820.0,1.15866362]
[1748907517548,0.82755339,105830.0,105820.0,1.14921397]
[1748907517749,0.80983955,105830.0,105820.0,1.14921397]
[1748907517961,0.80983955,105830.0,105820.0,0.93186413]
[1748907518165,0.80983955,105830.0,105820.0,0.94131387]
[1748907518369,0.8275542,105830.0,105820.0,1.13031405]
[1748907518569,0.80983955,105830.0,105820.0,1.13031405]
[1748907519426,0.80983946,105830.0,105820.0,1.1397637]
[1748907519623,0.80983946,105830.0,105820.0,1.13031405]
[1748907519830,0.8275533,105830.0,105820.0,0.94131387]
[1748907520549,0.81810481,105830.0,105820.0,1.13976361]
[1748907520825,0.81928848,105830.0,105820.0,0.9318643]
[1748907521031,0.80039097,105830.0,105820.0,0.95076405]
[1748907521188,0.80983955,105830.0,105820.0,0.9318643]
[1748907521387,0.80983955,105830.0,105820.0,0.94131422]
[1748907521589,0.8192883,105830.0,105820.0,0.94131422]
[1748907522219,0.83700238,105830.0,105820.0,0.94131422]
[1748907522768,0.8192883,105830.0,105820.0,0.94131422]
[1748907522972,0.83700247,105830.0,105820.0,0.94131422]
[1748907523182,0.8192883,105830.0,105820.0,0.9224143]
[1748907523400,0.8192883,105830.0,105820.0,0.94131422]
[1748907523620,0.83700248,105830.0,105820.0,0.9318643]
[1748907523847,0.8192883,105830.0,105820.0,0.94131422]
[1748907524293,0.83700248,105830.0,105820.0,0.94131422]
[1748907524597,0.83700257,105830.0,105820.0,0.94131422]
[1748907524811,0.8192883,105830.0,105820.0,0.94131422]
[1748907525240,0.81927132,105830.0,105820.0,0.94131422]
[1748907525671,0.80982257,105830.0,105820.0,0.95076405]
[1748907526783,0.80982257,105830.0,105820.0,1.13976423]
[1748907526998,0.82872008,105830.0,105820.0,0.9316243]
[1748907527257,0.81927124,105830.0,105820.0,0.94107422]
[1748907527612,0.83698079,105830.0,105820.0,0.94107422]
[1748907527820,0.81927124,105830.0,105820.0,0.94107422]
[1748907528931,0.81927177,105830.0,105820.0,0.9221743]
[1748907529135,0.82872079,105830.0,105820.0,0.9221743]
[1748907529331,0.80982293,105830.0,105820.0,0.93162413]
[1748907529505,0.80982293,105830.0,105820.0,0.9316243]
[1748907529762,0.80982293,105830.0,105820.0,1.12062448]
[1748907529944,0.82753248,105830.0,105820.0,1.13007431]
[1748907530150,0.80982293,105830.0,105820.0,1.13007431]
[1748907530349,0.80037426,105830.0,105820.0,1.13952405]
[1748907530522,0.77502568,105830.0,105820.0,1.13952405]
[1748907530728,0.77502568,105830.0,105820.0,1.1489737]
[1748907531354,0.78447426,105830.0,105820.0,1.13952405]
[1748907531556,0.77502568,105830.0,105820.0,1.1489737]
[1748907531751,0.78447426,105830.0,105820.0,1.1489737]
[1748907532594,0.77502568,105830.0,105820.0,1.1489737]
[1748907533001,0.76557728,105830.0,105820.0,1.15842326]
[1748907533242,0.39314262,105830.0,105820.0,1.19043441]
[1748907533457,0.05314262,105830.0,105820.0,1.51952033]
[1748907533673,0.05314262,105830.0,105820.0,1.93414118]
[1748907535276,0.05314262,105830.0,105820.0,1.57678985]
[1748907536139,0.05314262,105830.0,105820.0,1.21987186]
[1748907536516,0.05314262,105830.0,105820.0,1.24778331]
[1748907539025,0.04109262,105830.0,105820.0,1.24778331]
[1748907539801,0.04109262,105830.0,105820.0,1.21987186]
[1748907542597,0.04109262,105830.0,105820.0,1.20485526]
[1748907546439,0.04109262,105830.0,105820.0,1.86057325]
[1748907546855,0.04109262,105830.0,105820.0,1.50365526]
[1748907547067,0.04109262,105830.0,105820.0,1.86057325]
[1748907548123,0.04109262,105830.0,105820.0,1.50365526]
[1748907550079,0.03869262,105830.0,105820.0,1.50365526]
[1748907550489,0.03869262,105830.0,105820.0,1.53194868]
[1748907552469,0.03869262,105830.0,105820.0,1.53154868]
[1748907555248,0.03869262,105830.0,105820.0,1.88852123]
[1748907555466,0.03869262,105830.0,105820.0,1.90353783]
[1748907556082,0.03869262,105830.0,105820.0,1.88852123]
[1748907556480,0.03869262,105830.0,105820.0,1.58576123]
[1748907556725,0.03869262,105830.0,105820.0,1.90345783]
[1748907559033,0.03869262,105830.0,105820.0,1.14428503]
[1748907559034,0.39566517,105830.0,105820.0,1.14428503]
[1748907559242,0.41136517,105830.0,105820.0,1.45637441]
[1748907559650,0.39566517,105830.0,105820.0,1.45637441]
[1748907559860,0.39566517,105830.0,105820.0,1.47297441]
[1748907560066,0.03869262,105830.0,105820.0,1.47297441]
[1748907560702,0.03869262,105830.0,105820.0,1.84624696]
[1748907562134,0.03869262,105830.0,105820.0,1.86078781]
[1748907564120,0.03869262,105830.0,105820.0,1.56198781]
[1748907564539,0.03869262,105830.0,105820.0,1.91896036]
[1748907564747,0.03869262,105830.0,105820.0,1.93397696]
[1748907564944,0.03869262,105830.0,105820.0,2.21776036]
[1748907565398,0.03869262,105830.0,105820.0,1.91699158]
[1748907569672,0.02269262,105830.0,105820.0,1.91699158]
[1748907576893,0.01669262,105830.0,105820.0,1.91699158]
[1748907577114,0.01669262,105830.0,105820.0,1.91667158]
[1748907585227,0.01669262,105830.0,105820.0,2.27363619]
[1748907594534,0.01669262,105830.0,105820.0,2.3037891]
[1748907596779,0.01669262,105830.0,105820.0,2.6437891]
[1748907603972,0.01669262,105830.0,105820.0,3.00068492]
[1748907604181,0.01669262,105830.0,105820.0,2.6437891]
[1748907604792,0.07810616,105850.0,105840.0,0.23196067]
[1748907604997,0.07810616,105850.0,105840.0,1.09769867]
[1748907605627,0.07810616,105850.0,105840.0,0.74080285]
[1748907605838,0.08210616,105850.0,105840.0,1.09769867]
[1748907606049,0.08210616,105850.0,105840.0,1.10925148]
[1748907606658,0.08410616,105850.0,105840.0,1.10925148]
[1748907607087,0.08410616,105850.0,105840.0,1.12525148]
[1748907607500,0.0841974,105850.0,105840.0,1.12525148]
[1748907608120,0.0841974,105850.0,105840.0,1.10925148]
[1748907608982,0.00723362,105850.0,105840.0,1.10925148]
[1748907609189,0.00723362,105850.0,105840.0,1.12515148]
[1748907609863,0.00723362,105850.0,105840.0,1.53315148]
[1748907611588,0.00723362,105850.0,105840.0,1.17625566]
[1748907611885,0.00723362,105850.0,105840.0,1.53315148]
[1748907615050,0.00723362,105850.0,105840.0,1.49315942]
[1748907615283,0.00723362,105850.0,105840.0,2.58781524]
[1748907615512,0.00723362,105850.0,105840.0,1.51712778]
[1748907615731,0.00723362,105850.0,105840.0,2.23091942]
[1748907616170,0.00523362,105850.0,105840.0,2.23091942]
[1748907616382,0.00523362,105850.0,105840.0,2.23991942]
[1748907617064,0.00123362,105850.0,105840.0,2.23991942]
[1748907617283,0.00123362,105850.0,105840.0,2.24191942]
[1748907617534,0.00123362,105850.0,105840.0,1.52812778]
[1748907617784,0.00123362,105850.0,105840.0,2.23991942]
[1748907618041,0.00123362,105850.0,105840.0,2.24639942]
[1748907618542,0.00123362,105850.0,105840.0,1.53260778]
[1748907618755,0.00123362,105850.0,105840.0,2.24639942]
[1748907618995,0.00123362,105850.0,105840.0,1.53260778]
[1748907619178,0.00123362,105850.0,105840.0,2.24639942]
[1748907620321,0.00123362,105850.0,105840.0,2.54519942]
[1748907621655,0.00123362,105850.0,105840.0,1.83140778]
[1748907621885,0.00123362,105850.0,105840.0,2.54519942]
[1748907622822,0.00123362,105850.0,105840.0,1.83140778]
[1748907623059,0.00123362,105850.0,105840.0,2.54507942]
[1748907625447,0.00123362,105850.0,105840.0,1.83128778]
[1748907625688,0.00123362,105850.0,105840.0,2.57343242]
[1748907627187,0.00123362,105850.0,105840.0,1.85964078]
[1748907627411,0.00123362,105850.0,105840.0,2.57343242]
[1748907627761,0.00123362,105850.0,105840.0,2.27179242]
[1748907627968,0.00123362,105850.0,105840.0,2.57335242]
[1748907631681,0.00123362,105850.0,105840.0,2.62868824]
[1748907631907,0.00123362,105850.0,105840.0,2.56281084]
[1748907632155,0.00123362,105850.0,105840.0,2.96029084]
[1748907632376,0.00123362,105850.0,105840.0,2.65877084]
[1748907632598,0.00123362,105850.0,105840.0,2.95229084]
[1748907632809,0.00123362,105850.0,105840.0,2.65077084]
[1748907633025,0.00123362,105850.0,105840.0,2.95329084]
[1748907633215,0.00123362,105850.0,105840.0,2.60692056]
[1748907633839,0.00123362,105850.0,105840.0,1.89360338]
[1748907634062,0.00123362,105850.0,105840.0,2.60692056]
[1748907634292,0.00123362,105850.0,105840.0,2.30540056]
[1748907634781,0.00123362,105850.0,105840.0,2.60688056]
[1748907635016,0.00123362,105850.0,105840.0,2.30540056]
[1748907635213,0.00123362,105850.0,105840.0,2.60688056]
[1748907635426,0.00123362,105850.0,105840.0,2.30540056]
[1748907636061,0.00123362,105850.0,105840.0,2.60688056]
[1748907637534,0.00123362,105850.0,105840.0,2.30808056]
[1748907640427,0.03750418,105870.0,105860.0,0.233267]
[1748907640627,0.03750418,105870.0,105860.0,1.0980012]
[1748907641214,0.03750418,105870.0,105860.0,0.74134261]
[1748907641423,0.03750418,105870.0,105860.0,0.72534261]
[1748907641810,0.03750418,105870.0,105860.0,1.0840012]
[1748907642806,0.03750418,105870.0,105860.0,1.0994012]
[1748907643195,0.03750418,105870.0,105860.0,1.1147612]
[1748907643837,0.03750418,105870.0,105860.0,1.09973989]
[1748907644520,0.03750418,105870.0,105860.0,1.50765989]
[1748907644762,0.03750418,105870.0,105860.0,1.1510013]
[1748907644908,0.03750418,105870.0,105860.0,6.58252415]
[1748907645107,0.03750418,105870.0,105860.0,7.29584133]
[1748907645361,0.03750418,105870.0,105860.0,7.32596393]
[1748907645719,0.03750418,105870.0,105860.0,6.61064675]
[1748907645919,0.03750418,105870.0,105860.0,7.33396393]
[1748907646124,0.03750418,105870.0,105860.0,7.34196393]
[1748907646523,0.03750418,105870.0,105860.0,6.98530534]
[1748907647981,0.03750418,105870.0,105860.0,6.62864675]
[1748907648118,0.03750418,105870.0,105860.0,6.40582334]
[1748907650001,0.03750418,105870.0,105860.0,6.70462334]
[1748907650429,0.03750418,105870.0,105860.0,5.39976475]
[1748907650640,0.03750418,105870.0,105860.0,5.75642334]
[1748907651276,0.03750418,105870.0,105860.0,5.39976475]
[1748907651488,0.03750418,105870.0,105860.0,5.75642334]
[1748907652142,0.03750418,105870.0,105860.0,5.39976475]
[1748907652377,0.03750418,105870.0,105860.0,5.75642334]
[1748907653045,0.06960418,105870.0,105860.0,0.8434413]
[1748907653261,0.06960418,105870.0,105860.0,1.17427608]
[1748907653446,0.06960418,105870.0,105860.0,1.18881693]
[1748907653692,0.04960418,105870.0,105860.0,1.18881693]
[1748907653912,0.04960418,105870.0,105860.0,1.54547552]
[1748907654760,0.04960418,105870.0,105860.0,1.18853693]
[1748907654982,0.04360418,105870.0,105860.0,1.18853693]
[1748907655626,0.04360418,105870.0,105860.0,0.76857693]
[1748907655841,0.04360418,105870.0,105860.0,1.18821693]
[1748907657341,0.04360418,105870.0,105860.0,1.18785693]
[1748907658885,0.04360418,105870.0,105860.0,1.48665693]
[1748907659306,0.04360418,105870.0,105860.0,1.48621693]
[1748907659723,0.04360418,105870.0,105860.0,1.06737693]
[1748907659932,0.04360418,105870.0,105860.0,1.15678215]
[1748907660136,0.04360418,105870.0,105860.0,1.47106215]
[1748907660340,0.04360418,105870.0,105860.0,1.48605693]
[1748907660990,0.04360418,105870.0,105860.0,1.47106215]
[1748907661960,0.04360418,105870.0,105860.0,1.04293634]
[1748907662188,0.04360418,105870.0,105860.0,0.5325343]
[1748907662189,0.3791527,105870.0,105860.0,0.5325343]
[1748907662425,0.11834843,105870.0,105860.0,0.54198073]
[1748907662928,0.11834843,105870.0,105860.0,0.2182543]
[1748907662929,1.3426866,105870.0,105860.0,0.2182543]
[1748907663160,1.3426866,105870.0,105860.0,0.018]
[1748907663441,1.43519782,105870.0,105860.0,0.1044]
[1748907663655,1.43519782,105870.0,105860.0,0.1134]
[1748907663656,1.46356182,105870.0,105860.0,0.1134]
[1748907663887,0.65773342,105870.0,105860.0,0.1194]
[1748907664098,1.3710506,105870.0,105860.0,0.1194]
[1748907664309,1.3710506,105870.0,105860.0,0.1134]
[1748907664550,1.39994863,105870.0,105860.0,0.1134]
[1748907665177,1.41544863,105870.0,105860.0,0.1134]
[1748907665390,1.46954455,105870.0,105860.0,0.1044]
[1748907665600,1.46954455,105870.0,105860.0,0.1064]
[1748907666033,1.33848485,105870.0,105860.0,0.1044]
[1748907666487,0.62516767,105870.0,105860.0,0.1044]
[1748907666714,1.33848485,105870.0,105860.0,0.1044]
[1748907667556,0.98182626,105870.0,105860.0,0.1044]
[1748907670814,0.04329135,105860.0,105850.0,0.93832754]
[1748907671029,0.39994994,105860.0,105850.0,1.14806872]
[1748907671458,0.39994994,105860.0,105850.0,0.82546184]
[1748907671459,0.04329135,105860.0,105850.0,0.82546184]
[1748907671676,0.40939584,105860.0,105850.0,1.12897487]
[1748907671890,0.40939584,105860.0,105850.0,1.13842184]
[1748907672125,0.39994994,105860.0,105850.0,1.13842184]
[1748907672346,0.40939575,105860.0,105850.0,1.13842184]
[1748907672552,0.40939575,105860.0,105850.0,1.13097487]
[1748907672773,0.41884165,105860.0,105850.0,1.11208066]
[1748907673038,0.40939575,105860.0,105850.0,1.13097478]
[1748907673246,0.40939575,105860.0,105850.0,1.12152781]
[1748907673458,0.41884165,105860.0,105850.0,1.13097487]
[1748907673673,0.41884165,105860.0,105850.0,0.79912066]
[1748907673894,0.42828773,105860.0,105850.0,0.94150887]
[1748907674099,0.51268489,105860.0,105850.0,0.94158887]
[1748907674322,0.42828773,105860.0,105850.0,0.94158887]
[1748907674545,0.73994994,105860.0,105850.0,0.9225743]
[1748907674753,0.73994994,105860.0,105850.0,0.93202154]
[1748907674754,0.74939584,105860.0,105850.0,0.93202154]
[1748907674954,0.77596048,105860.0,105850.0,0.93202154]
[1748907675176,0.74939584,105860.0,105850.0,1.12096816]
[1748907675389,0.73994994,105860.0,105850.0,1.13986228]
[1748907675619,0.73994994,105860.0,105850.0,1.13986237]
[1748907675829,0.73995003,105860.0,105850.0,1.13986237]
[1748907676045,0.79543447,105860.0,105850.0,0.80856816]
[1748907676253,0.79543447,105860.0,105850.0,1.13013531]
[1748907676466,0.73995003,105860.0,105850.0,1.13013531]
[1748907676668,0.38329144,105860.0,105850.0,1.13013531]
[1748907676885,0.73995003,105860.0,105850.0,1.13958237]
[1748907677476,0.73050422,105860.0,105850.0,0.71357531]
[1748907677691,0.74939602,105860.0,105850.0,1.12757531]
[1748907678154,0.73995003,105860.0,105850.0,1.13702228]
[1748907678345,0.73995003,105860.0,105850.0,1.13702237]
[1748907678545,0.74939602,105860.0,105850.0,1.12757531]
[1748907678760,0.74939602,105860.0,105850.0,1.11812816]
[1748907679619,0.74939602,105860.0,105850.0,0.92918154]
[1748907680150,0.75884219,105860.0,105850.0,0.61710163]
[1748907680361,0.74939602,105860.0,105850.0,0.92862163]
[1748907680573,0.75884219,105860.0,105850.0,0.92862163]
[1748907680759,0.74939602,105860.0,105850.0,0.92862163]
[1748907681225,0.74939602,105860.0,105850.0,0.93806887]
[1748907681652,0.74939602,105860.0,105850.0,0.9191743]
[1748907681864,0.75884219,105860.0,105850.0,0.92862163]
[1748907682071,0.75884219,105860.0,105850.0,0.52074163]
[1748907682284,0.7588421,105860.0,105850.0,0.52074163]
[1748907683129,0.40218351,105860.0,105850.0,0.52074163]
[1748907683336,0.7588421,105860.0,105850.0,0.52074163]
[1748907684182,0.7943822,105860.0,105850.0,0.52074163]
[1748907684598,0.7943822,105860.0,105850.0,0.5112943]
[1748907684806,0.80382846,105860.0,105850.0,0.5112943]
[1748907685228,0.76828836,105860.0,105850.0,0.5112943]
[1748907685451,0.76828827,105860.0,105850.0,0.5112943]
[1748907685893,0.75884264,105860.0,105850.0,0.5112943]
[1748907686101,0.75884309,105860.0,105850.0,0.5101743]
[1748907687190,0.74939683,105860.0,105850.0,0.5101743]
[1748907687609,0.75884317,105860.0,105850.0,0.5101743]
[1748907689355,0.92887987,105860.0,105850.0,0.002]
[1748907689576,0.94657715,105860.0,105850.0,0.002]
[1748907689796,0.92887987,105860.0,105850.0,0.002]
[1748907690006,0.92887987,105860.0,105850.0,0.31172]
[1748907690007,0.94657841,105860.0,105850.0,0.31172]
[1748907690218,1.02139109,105860.0,105850.0,0.31172]
[1748907690422,0.92887987,105860.0,105850.0,0.31172]
[1748907691885,0.94657842,105860.0,105850.0,0.31172]
[1748907692253,0.92887987,105860.0,105850.0,0.31172]
[1748907693887,0.95724587,105860.0,105850.0,0.31172]
[1748907694988,0.95724587,105860.0,105850.0,0.002]
[1748907695530,1.09975709,105860.0,105850.0,0.002]
[1748907695735,0.53839377,105850.0,105840.0,0.41044]
[1748907695939,0.53839377,105850.0,105810.0,0.13236]
[1748907695940,0.01889858,105820.0,105810.0,0.13236]
[1748907696179,0.36610726,105830.0,105810.0,0.7352544]
[1748907696382,0.34,105840.0,105830.0,0.0304]
[1748907696588,0.37779118,105840.0,105830.0,0.3388]
[1748907696992,0.55730823,105840.0,105830.0,0.3388]
[1748907697196,0.57623055,105840.0,105830.0,0.44064]
[1748907698062,0.59393077,105840.0,105830.0,0.44064]
[1748907698266,0.58711827,105840.0,105830.0,0.0304]
[1748907698491,0.58711827,105840.0,105830.0,0.44048]
[1748907698704,0.58811827,105840.0,105830.0,0.0153]
[1748907698909,0.58811827,105840.0,105830.0,0.42526]
[1748907699330,0.57867032,105840.0,105830.0,0.42526]
[1748907699545,0.61183296,105840.0,105830.0,0.40996]
[1748907699747,0.59413245,105840.0,105830.0,0.40996]
[1748907699981,0.95079104,105840.0,105830.0,0.40996]
[1748907700662,0.93532891,105840.0,105830.0,0.40996]
[1748907701340,0.94359427,105840.0,105830.0,0.40996]
[1748907701564,0.92588078,105840.0,105830.0,0.40996]
[1748907702003,0.92588078,105840.0,105830.0,0.40956]
[1748907702224,0.94359484,105840.0,105830.0,0.40956]
[1748907702454,0.94359503,105840.0,105830.0,0.40956]
[1748907702676,0.92588078,105840.0,105830.0,0.40956]
[1748907703123,0.94359502,105840.0,105830.0,0.40956]
[1748907703347,0.92588078,105840.0,105830.0,0.40956]
[1748907703898,1.018392,105840.0,105830.0,0.40956]
[1748907704383,0.92588078,105840.0,105830.0,0.40956]
[1748907704608,0.92588078,105840.0,105830.0,0.42596]
[1748907705302,0.56922219,105840.0,105830.0,0.42596]
[1748907705531,0.91640677,105840.0,105830.0,0.5377143]
[1748907706006,0.93412041,105840.0,105830.0,0.5377143]
[1748907706258,0.91640677,105840.0,105830.0,0.5377143]
[1748907706470,0.90551905,105840.0,105830.0,0.5377143]
[1748907706886,0.94094637,105840.0,105830.0,0.5377143]
[1748907707096,0.92323266,105840.0,105830.0,0.5377143]
[1748907707737,0.94094637,105840.0,105830.0,0.5377143]
[1748907707943,0.92323266,105840.0,105830.0,0.5377143]
[1748907708368,0.9137848,105840.0,105830.0,0.5377143]
[1748907709000,0.93150002,105840.0,105830.0,0.5377143]
[1748907709849,0.94921524,105840.0,105830.0,0.5377143]
[1748907710086,0.93150002,105840.0,105830.0,0.5377143]
[1748907710285,0.57484143,105840.0,105830.0,0.5377143]
[1748907710495,0.9492142,105840.0,105830.0,0.5377143]
[1748907711154,0.57484143,105840.0,105830.0,0.5377143]
[1748907711376,0.93150002,105840.0,105830.0,0.5377143]
[1748907711589,0.57484143,105840.0,105830.0,0.5377143]
[1748907711803,0.93150002,105840.0,105830.0,0.5377143]
[1748907712734,0.94921378,105840.0,105830.0,0.5377143]
[1748907712952,0.93150002,105840.0,105830.0,0.5377143]
[1748907713828,0.9492138,105840.0,105830.0,0.5377143]
[1748907714048,0.59255521,105840.0,105830.0,0.5377143]
[1748907714260,0.75198341,105840.0,105830.0,0.5377143]
[1748907714905,0.76969715,105840.0,105830.0,0.5377143]
[1748907715165,0.75198341,105840.0,105830.0,0.5377143]
[1748907716471,0.94094788,105840.0,105830.0,0.5377143]
[1748907717210,0.37642883,105840.0,105830.0,0.73614565]
[1748907717421,0.05532401,105840.0,105830.0,0.74559458]
[1748907717886,0.04587633,105840.0,105830.0,0.74559458]
[1748907718106,0.03642883,105840.0,105830.0,0.77394066]